bitfinex/quotes_SOLUSD_20250731
["timestamp","ask_amount","ask_price","bid_price","bid_amount"]
[1754002135916,188.98,172.85,172.82,0.7]
[1754002136119,188.98,172.85,172.82,6.67516511]
[1754002136638,189.65,172.85,172.76,22.57297283]
[1754002136820,189.65,172.85,172.82,5.97516511]
[1754002138051,189.65,172.85,172.8,0.7]
[1754002138234,189.65,172.85,172.82,5.97516511]
[1754002138941,0.67,172.84,172.82,5.97516511]
[1754002139145,6.64516511,172.84,172.79,22.75984908]
[1754002139343,48.02516511,172.83,172.78,5.97516511]
[1754002139544,148.27,172.82,172.78,5.97516511]
[1754002139752,148.27,172.82,172.81,5.97516511]
[1754002139951,188.98,172.82,172.81,5.97516511]
[1754002140153,147.6,172.82,172.81,5.97516511]
[1754002140536,41.38,172.83,172.81,5.97516511]
[1754002140869,0.67,172.83,172.78,0.7]
[1754002141067,0.67,172.82,172.8,5.97516511]
[1754002141267,0.67,172.82,172.81,5.97516511]
[1754002141637,26.0,172.84,172.81,5.97516511]
[1754002141843,26.67,172.84,172.82,5.97516511]
[1754002142062,41.38,172.83,172.79,0.7]
[1754002142363,68.05,172.84,172.82,5.97516511]
[1754002142737,0.67,172.83,172.82,5.97516511]
[1754002143059,0.67,172.83,172.81,5.97516511]
[1754002143254,41.38,172.82,172.77,17.48468397]
[1754002143562,0.67,172.87,172.81,5.97516511]
[1754002143749,41.38,172.86,172.85,5.97516511]
[1754002143945,42.05,172.86,172.84,5.97516511]
[1754002145769,41.38,172.86,172.85,5.97516511]
[1754002146477,41.38,172.87,172.85,5.97516511]
[1754002146683,42.07,172.87,172.85,5.97516511]
[1754002148551,0.69,172.86,172.85,5.97516511]
[1754002148752,41.38,172.87,172.85,5.97516511]
[1754002149058,42.07,172.87,172.86,5.97516511]
[1754002149252,45.92312419,172.87,172.86,5.97516511]
[1754002150153,56.18028367,172.87,172.8,0.72]
[1754002150366,166.68183049,172.86,172.81,5.97516511]
[1754002150570,26.0,172.82,172.8,5.97516511]
[1754002150774,26.0,172.82,172.81,5.97516511]
[1754002151557,26.0,172.82,172.78,17.50468397]
[1754002151784,0.69,172.81,172.8,5.97516511]
[1754002151951,26.0,172.82,172.8,5.97516511]
[1754002152147,26.0,172.82,172.81,5.97516511]
[1754002153962,26.0,172.82,172.79,0.72]
[1754002154168,42.05,172.83,172.8,5.97516511]
[1754002154364,0.69,172.82,172.8,5.97516511]
[1754002154571,26.69,172.81,172.8,5.97516511]
[1754002154976,26.0,172.81,172.8,5.97516511]
[1754002155783,0.69,172.88,172.81,16.78468397]
[1754002156089,45.6445873,172.87,172.86,5.97516511]
[1754002156272,49.50029238,172.87,172.86,5.97516511]
[1754002157369,50.19029238,172.87,172.86,5.97516511]
[1754002157597,49.50029238,172.87,172.86,5.97516511]
[1754002157769,42.05,172.87,172.86,5.97516511]
[1754002157971,50.19089408,172.87,172.85,5.97516511]
[1754002158173,42.05,172.87,172.85,5.97516511]
[1754002159294,41.36,172.87,172.86,5.97516511]
[1754002159465,49.50821206,172.87,172.86,5.97516511]
[1754002161079,8.14821206,172.87,172.86,5.97516511]
[1754002161388,50.17821206,172.87,172.85,5.97516511]
[1754002161594,8.83821206,172.86,172.81,0.72]
[1754002161886,189.63,172.85,172.83,5.97516511]
[1754002162191,0.69,172.84,172.82,5.97516511]
[1754002162409,4.55397887,172.84,172.82,5.97516511]
[1754002162701,3.86397887,172.84,172.8,0.72]
[1754002162879,3.86397887,172.84,172.83,5.97516511]
[1754002163081,3.86397887,172.84,172.83,6.69516511]
[1754002163281,147.6,172.85,172.83,6.69516511]
[1754002163474,147.6,172.85,172.84,6.69516511]
[1754002163794,147.6,172.85,172.8,22.75984908]
[1754002164091,147.6,172.85,172.84,5.97516511]
[1754002164301,155.75665849,172.85,172.84,5.97516511]
[1754002164502,151.46350456,172.85,172.82,0.72]
[1754002164670,147.6,172.85,172.82,0.72]
[1754002165001,147.6,172.85,172.84,5.97516511]
[1754002165164,151.46361092,172.85,172.84,5.97516511]
[1754002168095,10.80612589,172.9,172.84,6.69516511]
[1754002168096,147.6,172.89,172.84,6.69516511]
[1754002168295,188.94,172.89,172.88,5.97516511]
[1754002168498,201.38010013,172.89,172.88,5.97516511]
[1754002168968,160.04010013,172.89,172.88,5.97516511]
[1754002169167,201.38010013,172.89,172.88,5.97516511]
[1754002169495,197.0903362,172.89,172.88,5.97516511]
[1754002170190,197.0903362,172.89,172.86,0.72]
[1754002170381,188.94,172.89,172.86,0.72]
[1754002170679,189.63,172.89,172.88,5.97516511]
[1754002170879,197.77700805,172.89,172.88,5.97516511]
[1754002171086,197.08700805,172.89,172.86,0.72]
[1754002171288,188.94,172.89,172.88,5.97516511]
[1754002171589,197.08477865,172.89,172.88,5.97516511]
[1754002172090,155.74477865,172.89,172.88,5.97516511]
[1754002172290,147.6,172.89,172.88,5.97516511]
[1754002172894,151.45715539,172.89,172.88,5.97516511]
[1754002173298,148.29,172.89,172.88,5.97516511]
[1754002174696,147.6,172.89,172.88,5.97516511]
[1754002177700,147.6,172.89,172.88,12.61033022]
[1754002178599,41.32,172.95,172.89,16.78468397]
[1754002178802,2.9479752,172.95,172.94,5.97516511]
[1754002179010,41.32,172.96,172.94,5.97516511]
[1754002179208,41.32,172.96,172.95,5.97516511]
[1754002179502,44.14689299,172.96,172.95,5.97516511]
[1754002179805,2.82689299,172.96,172.95,5.97516511]
[1754002180003,42.01,172.97,172.95,5.97516511]
[1754002180378,41.32,172.97,172.95,5.97516511]
[1754002180580,0.69,172.96,172.95,5.97516511]
[1754002181685,41.32,172.97,172.95,5.97516511]
[1754002181889,41.32,172.97,172.96,5.97516511]
[1754002182085,42.01,172.97,172.96,5.97516511]
[1754002183682,44.90031679,172.97,172.96,5.97516511]
[1754002185609,44.21031679,172.97,172.96,5.97516511]
[1754002187635,44.90031679,172.97,172.96,5.97516511]
[1754002188306,44.21031679,172.97,172.96,5.97516511]
[1754002188901,44.8575542,172.97,172.96,5.97516511]
[1754002189297,45.5475542,172.97,172.96,5.97516511]
[1754002191796,44.8575542,172.97,172.96,5.97516511]
[1754002192001,3.5375542,172.97,172.96,5.97516511]
[1754002192201,44.17031679,172.97,172.96,5.97516511]
[1754002192714,2.89031679,172.97,172.96,5.97516511]
[1754002192919,0.64723741,172.97,172.96,5.97516511]
[1754002193232,1.33723741,172.97,172.96,5.97516511]
[1754002193730,0.64723741,172.97,172.96,5.97516511]
[1754002194919,1.33723741,172.97,172.96,5.97516511]
[1754002195145,0.64723741,172.97,172.96,5.97516511]
[1754002196506,1.33723741,172.97,172.96,5.97516511]
[1754002196705,0.64723741,172.97,172.96,5.97516511]
[1754002199332,3.56518286,172.97,172.96,5.97516511]
[1754002199536,0.64723741,172.97,172.96,5.97516511]
[1754002200919,0.64723741,173.0,172.96,6.63516511]
[1754002201121,0.64723741,173.02,172.99,5.97516511]
[1754002201347,44.73716386,173.02,173.01,5.97516511]
[1754002201528,41.90723741,173.02,173.01,5.97516511]
[1754002201733,42.59723741,173.02,173.01,5.97516511]
[1754002202125,1.33723741,173.02,173.01,5.97516511]
[1754002202332,42.59723741,173.02,173.01,5.97516511]
[1754002202847,42.59723741,173.02,173.01,6.63516511]
[1754002202848,41.26,173.02,173.01,6.63516511]
[1754002203061,44.16221805,173.04,173.01,6.63516511]
[1754002203221,26.0,173.07,173.03,5.97516511]
[1754002203548,41.90723741,173.06,173.05,5.97516511]
[1754002203755,42.59723741,173.06,173.05,5.97516511]
[1754002204132,42.59723741,173.06,173.01,0.66]
[1754002204325,1.33723741,173.06,173.05,5.97516511]
[1754002204521,42.57723741,173.06,173.02,0.66]
[1754002204721,0.72,173.05,173.0,0.66]
[1754002204927,0.72,173.05,173.03,5.97516511]
[1754002204928,0.64723741,173.04,173.03,5.97516511]
[1754002205341,41.88723741,173.04,173.03,5.97516511]
[1754002205933,44.73627653,173.04,173.03,5.97516511]
[1754002206129,44.73627653,173.04,173.01,0.66]
[1754002206444,44.73627653,173.04,173.03,5.97516511]
[1754002206646,45.45627653,173.04,172.97,0.66]
[1754002206950,192.33627653,173.04,173.03,5.97516511]
[1754002207248,191.68903912,173.04,173.03,5.97516511]
[1754002209633,147.6,173.08,173.03,6.63516511]
[1754002209934,147.6,173.08,173.04,0.66]
[1754002209935,41.22,173.07,173.04,0.66]
[1754002210129,41.22,173.07,173.05,0.66]
[1754002210433,188.82,173.08,173.05,0.66]
[1754002210643,147.6,173.08,173.05,0.66]
[1754002210842,188.82,173.08,173.05,0.66]
[1754002211155,188.82,173.08,173.07,5.97516511]
[1754002211352,191.67858994,173.08,173.07,5.97516511]
[1754002211568,192.39858994,173.08,173.07,5.97516511]
[1754002213763,147.6,173.08,173.07,6.63516511]
[1754002214480,0.72,173.15,173.08,16.78468397]
[1754002214670,46.42962908,173.15,173.09,0.66]
[1754002214974,42.58723741,173.15,173.09,0.66]
[1754002215162,3.84291212,173.14,173.09,0.66]
[1754002215357,1.36723741,173.13,173.07,6.63516511]
[1754002215566,42.58723741,173.13,173.11,5.97516511]
[1754002215764,0.64723741,173.13,173.11,5.97516511]
[1754002215958,0.64723741,173.13,173.12,5.97516511]
[1754002216376,1.36723741,173.13,173.08,0.66]
[1754002216664,41.92,173.12,173.07,5.97516511]
[1754002216861,41.92,173.12,173.11,5.97516511]
[1754002217180,41.2,173.12,173.07,6.63516511]
[1754002217480,4.55894721,173.11,173.03,0.66]
[1754002217702,41.92,173.1,173.07,5.97516511]
[1754002217872,0.72,173.09,173.08,5.97516511]
[1754002218884,41.2,173.1,173.08,6.63516511]
[1754002219062,41.2,173.1,173.09,5.97516511]
[1754002219385,41.92,173.1,173.09,5.97516511]
[1754002219566,45.75895158,173.1,173.03,0.66]
[1754002219885,0.64723741,173.09,173.08,5.97516511]
[1754002220099,41.2,173.1,173.08,5.97516511]
[1754002220391,41.2,173.1,173.09,5.97516511]
[1754002220691,41.92,173.1,173.06,5.97516511]
[1754002220861,41.92,173.1,173.04,5.97516511]
[1754002220862,7.34240252,173.09,173.04,5.97516511]
[1754002221186,5.97516511,173.07,173.02,5.97516511]
[1754002221491,42.56723741,173.06,172.99,0.66]
[1754002221695,0.72,173.05,173.01,5.97516511]
[1754002221882,41.84723741,173.04,172.97,17.44468397]
[1754002222081,0.72,173.03,172.99,5.97516511]
[1754002222293,42.56723741,173.02,173.0,5.97516511]
[1754002222789,42.56723741,173.02,173.01,5.97516511]
[1754002224797,41.84723741,173.02,173.01,5.97516511]
[1754002225500,41.2,173.02,173.01,5.97516511]
[1754002226005,41.84723741,173.04,173.01,6.63516511]
[1754002226302,41.2,173.04,173.03,5.97516511]
[1754002226599,42.56723741,173.06,173.03,5.97516511]
[1754002226799,0.72,173.05,173.03,5.97516511]
[1754002227013,0.72,173.05,173.02,5.97516511]
[1754002227185,0.72,173.04,173.02,5.97516511]
[1754002228995,47.82240252,173.06,172.99,0.66]
[1754002229196,0.72,173.03,173.0,5.97516511]
[1754002229507,0.72,173.02,173.0,5.97516511]
[1754002229722,1.36723741,173.02,173.0,5.97516511]
[1754002230182,0.72,173.01,173.0,5.97516511]
[1754002230376,0.72,173.01,172.94,48.75984897]
[1754002230582,0.64723741,173.0,172.98,5.97516511]
[1754002230891,47.17516511,173.03,172.99,5.97516511]
[1754002230892,1.36723741,173.02,172.99,5.97516511]
[1754002231094,0.64723741,173.02,172.99,5.97516511]
[1754002231397,0.72,173.01,172.99,5.97516511]
[1754002232802,147.6,173.05,173.0,7.21319979]
[1754002233008,147.6,173.05,173.04,5.97516511]
[1754002234282,148.3,173.05,173.0,0.66]
[1754002234488,147.6,173.05,173.04,5.97516511]
[1754002234703,148.3,173.05,173.04,5.97516511]
[1754002235010,148.3,173.05,173.0,0.66]
[1754002235188,148.3,173.05,173.04,5.97516511]
[1754002235390,189.5,173.05,173.04,5.97516511]
[1754002236422,188.8,173.05,173.04,5.97516511]
[1754002236917,189.5,173.05,173.04,5.97516511]
[1754002238398,189.5,173.05,172.97,0.67]
[1754002238595,189.5,173.05,173.0,5.97516511]
[1754002238596,1.34723741,173.04,173.0,5.97516511]
[1754002238798,41.88,173.03,173.0,5.97516511]
[1754002239098,1.34723741,173.02,173.0,5.97516511]
[1754002239293,1.34723741,173.02,172.97,0.67]
[1754002239294,1.34723741,173.02,173.01,5.97516511]
[1754002239615,41.18,173.04,173.01,6.64516511]
[1754002239826,41.18,173.04,172.98,5.97516511]
[1754002239827,41.18,173.06,173.03,5.97516511]
[1754002240117,41.18,173.06,173.05,5.97516511]
[1754002240684,0.64723741,173.08,173.05,5.97516511]
[1754002240901,41.82723741,173.08,173.07,5.97516511]
[1754002242426,41.18,173.08,173.07,5.97516511]
[1754002243118,188.78,173.09,173.07,5.97516511]
[1754002243295,147.6,173.09,173.08,5.97516511]
[1754002244515,147.6,173.13,173.08,6.64516511]
[1754002244730,45.03182186,173.12,173.09,0.67]
[1754002244897,41.82723741,173.12,173.09,0.67]
[1754002245226,41.18,173.12,173.09,0.67]
[1754002245519,147.6,173.13,173.1,0.67]
[1754002246016,147.6,173.13,173.12,5.97516511]
[1754002246605,147.6,173.13,173.12,6.64516511]
[1754002247232,0.7,173.18,173.12,6.64516511]
[1754002247399,39.68,173.17,173.13,0.67]
[1754002247603,39.68,173.17,173.16,5.97516511]
[1754002247805,0.64723741,173.18,173.16,5.97516511]
[1754002248003,4.54792632,173.18,173.17,5.97516511]
[1754002248219,5.19516373,173.18,173.17,5.97516511]
[1754002248619,3.84792632,173.18,173.17,5.97516511]
[1754002249535,3.84792632,173.18,173.14,0.67]
[1754002249708,4.54792632,173.18,173.17,5.97516511]
[1754002250326,0.7,173.18,173.17,5.97516511]
[1754002250815,188.76,173.19,173.17,5.97516511]
[1754002251020,188.76,173.19,173.18,5.97516511]
[1754002251228,192.60362439,173.19,173.18,5.97516511]
[1754002251417,188.76,173.19,173.18,5.97516511]
[1754002251622,189.46,173.19,173.18,5.97516511]
[1754002252323,148.3,173.19,173.18,5.97516511]
[1754002252521,189.46,173.19,173.18,5.97516511]
[1754002252720,188.76,173.19,173.18,5.97516511]
[1754002252927,147.6,173.19,173.18,5.97516511]
[1754002253528,41.86,173.21,173.18,5.97516511]
[1754002253724,42.50723741,173.21,173.2,5.97516511]
[1754002254609,45.36578471,173.21,173.19,5.97516511]
[1754002255126,44.66578471,173.21,173.19,5.97516511]
[1754002255322,45.36578471,173.21,173.19,5.97516511]
[1754002255534,41.16,173.21,173.2,5.97516511]
[1754002255709,41.80723741,173.21,173.2,5.97516511]
[1754002255910,26.7,173.23,173.2,5.97516511]
[1754002256237,26.7,173.23,173.21,5.97516511]
[1754002256238,42.48723741,173.22,173.21,5.97516511]
[1754002256608,0.64723741,173.22,173.21,5.97516511]
[1754002256810,0.64723741,173.26,173.21,5.97516511]
[1754002257014,67.14,173.25,173.24,5.97516511]
[1754002257215,41.84,173.25,173.24,5.97516511]
[1754002257734,44.6997039,173.25,173.24,5.97516511]
[1754002258240,70.6997039,173.25,173.24,5.97516511]
[1754002258446,41.84,173.25,173.24,5.97516511]
[1754002259257,41.14,173.25,173.24,5.97516511]
[1754002259454,41.78723741,173.26,173.24,5.97516511]
[1754002259665,41.78723741,173.26,173.21,0.67]
[1754002259666,42.48723741,173.26,173.25,5.97516511]
[1754002261367,45.3522085,173.29,173.25,5.97516511]
[1754002261569,41.76723741,173.29,173.28,5.97516511]
[1754002262056,42.46723741,173.29,173.28,5.97516511]
[1754002262253,42.46723741,173.29,173.27,5.97516511]
[1754002262458,0.7,173.28,173.27,5.97516511]
[1754002263969,0.7,173.28,173.21,0.57733387]
[1754002264174,41.76723741,173.27,173.2,0.67]
[1754002264465,41.76723741,173.27,173.26,5.97516511]
[1754002264677,42.45723741,173.27,173.26,5.97516511]
[1754002264859,41.12,173.27,173.26,5.97516511]
[1754002265557,0.64723741,173.29,173.26,5.97516511]
[1754002265879,188.72,173.3,173.28,5.97516511]
[1754002266170,148.29,173.3,173.29,5.97516511]
[1754002266543,147.6,173.3,173.29,5.97516511]
[1754002267168,0.69,173.32,173.29,6.69516511]
[1754002267169,41.1,173.32,173.29,6.69516511]
[1754002267377,41.1,173.32,173.31,5.97516511]
[1754002267561,0.69,173.32,173.31,5.97516511]
[1754002269177,44.65754715,173.33,173.31,5.97516511]
[1754002269365,45.34754715,173.33,173.31,5.97516511]
[1754002270072,42.43723741,173.33,173.31,5.97516511]
[1754002270651,0.69,173.32,173.29,5.97516511]
[1754002270951,0.64723741,173.31,173.29,5.97516511]
[1754002271356,0.64723741,173.32,173.3,5.97516511]
[1754002271665,1.33723741,173.32,173.31,5.97516511]
[1754002271845,0.69,173.32,173.31,5.97516511]
[1754002272047,41.74723741,173.33,173.31,5.97516511]
[1754002272345,42.43723741,173.33,173.31,5.97516511]
[1754002273770,6.66516511,173.32,173.25,0.72]
[1754002273947,5.97516511,173.29,173.22,0.72]
[1754002274161,5.97516511,173.29,173.24,5.97516511]
[1754002274162,42.41723741,173.28,173.24,5.97516511]
[1754002274360,41.72723741,173.28,173.26,5.97516511]
[1754002274859,0.69,173.27,173.25,5.97516511]
[1754002275055,1.33723741,173.26,173.23,5.97516511]
[1754002275284,0.69,173.25,173.23,5.97516511]
[1754002275974,0.69,173.24,173.23,5.97516511]
[1754002276176,1.33723741,173.26,173.23,5.97516511]
[1754002276888,0.69,173.25,173.22,5.97516511]
[1754002277065,1.33723741,173.24,173.2,5.97516511]
[1754002277265,0.69,173.23,173.2,5.97516511]
[1754002277470,42.41723741,173.25,173.22,5.97516511]
[1754002277669,42.41723741,173.25,173.23,5.97516511]
[1754002277860,41.72723741,173.25,173.23,5.97516511]
[1754002278484,41.72723741,173.25,173.22,5.97516511]
[1754002278696,0.69,173.24,173.21,5.97516511]
[1754002279001,1.33723741,173.23,173.2,5.97516511]
[1754002279164,1.33723741,173.23,173.21,5.97516511]
[1754002279872,0.64723741,173.23,173.2,5.97516511]
[1754002280085,6.66516511,173.22,173.16,5.97516511]
[1754002280294,48.39240252,173.21,173.16,5.97516511]
[1754002280469,41.72723741,173.21,173.16,5.97516511]
[1754002280682,0.69,173.2,173.16,5.97516511]
[1754002280893,0.64723741,173.19,173.16,5.97516511]
[1754002281100,1.33723741,173.19,173.16,5.97516511]
[1754002282104,0.64723741,173.2,173.17,5.97516511]
[1754002282474,0.64723741,173.2,173.18,5.97516511]
[1754002282978,1.33723741,173.2,173.18,5.97516511]
[1754002283305,0.64723741,173.2,173.18,5.97516511]
[1754002284177,1.33723741,173.2,173.18,5.97516511]
[1754002284386,1.33723741,173.2,173.17,5.97516511]
[1754002284903,41.72723741,173.21,173.19,5.97516511]
[1754002285099,41.08,173.21,173.2,5.97516511]
[1754002285500,27.33723741,173.22,173.2,5.97516511]
[1754002285801,4.95235209,173.21,173.18,5.97516511]
[1754002285995,5.5995895,173.2,173.17,5.97516511]
[1754002286189,1.33723741,173.2,173.17,5.97516511]
[1754002286387,46.03356548,173.19,173.15,5.97516511]
[1754002286704,1.33723741,173.18,173.15,5.97516511]
[1754002287002,1.33723741,173.18,173.16,5.97516511]
[1754002288102,0.69,173.17,173.14,5.97516511]
[1754002288478,1.33723741,173.16,173.13,5.97516511]
[1754002288682,0.69,173.15,173.13,5.97516511]
[1754002288909,1.33723741,173.17,173.14,5.97516511]
[1754002289121,0.69,173.16,173.13,5.97516511]
[1754002289482,0.64723741,173.15,173.13,5.97516511]
[1754002290910,0.69,173.16,173.13,5.97516511]
[1754002291319,0.64723741,173.17,173.14,5.97516511]
[1754002291489,0.64723741,173.18,173.15,5.97516511]
[1754002291808,41.72723741,173.19,173.17,5.97516511]
[1754002291994,42.41723741,173.19,173.16,5.97516511]
[1754002292609,41.72723741,173.19,173.17,5.97516511]
[1754002292912,41.72723741,173.19,173.17,6.69516511]
[1754002293222,42.41723741,173.19,173.15,0.72]
[1754002293519,0.69,173.18,173.16,5.97516511]
[1754002293728,1.33723741,173.17,173.14,5.97516511]
[1754002293934,0.69,173.16,173.12,5.97516511]
[1754002294092,1.33723741,173.15,173.12,5.97516511]
[1754002295520,0.64723741,173.15,173.12,5.97516511]
[1754002295728,0.66,173.14,173.1,5.97516511]
[1754002295895,5.97516511,173.12,173.07,5.97516511]
[1754002296097,1.30723741,173.11,173.07,5.97516511]
[1754002296313,1.30723741,173.11,173.08,5.97516511]
[1754002296903,0.64723741,173.11,173.09,5.97516511]
[1754002297110,0.64723741,173.13,173.1,6.65516511]
[1754002297325,0.64723741,173.13,173.05,41.08]
[1754002297513,7.28240252,173.13,173.08,5.97516511]
[1754002297728,0.66,173.12,173.09,5.97516511]
[1754002297913,0.64723741,173.11,173.09,5.97516511]
[1754002298125,1.30723741,173.11,173.08,5.97516511]
[1754002298301,1.30723741,173.11,173.06,0.68]
[1754002298650,0.66,173.1,173.08,5.97516511]
[1754002298809,0.64723741,173.09,173.08,5.97516511]
[1754002298999,0.64723741,173.09,173.07,5.97516511]
[1754002299405,1.30723741,173.1,173.07,5.97516511]
[1754002300015,1.30723741,173.1,173.08,5.97516511]
[1754002300435,0.64723741,173.1,173.08,5.97516511]
[1754002301012,41.72723741,173.11,173.09,6.65516511]
[1754002301731,41.72723741,173.11,173.1,5.97516511]
[1754002301915,0.64723741,173.14,173.1,6.65516511]
[1754002302243,0.64723741,173.14,173.07,5.97516511]
[1754002302244,0.64723741,173.14,173.13,5.97516511]
[1754002302409,3.54980061,173.14,173.13,5.97516511]
[1754002305035,147.6,173.15,173.13,6.65516511]
[1754002305219,147.6,173.15,173.14,5.97516511]
[1754002305725,147.6,173.15,173.14,6.65516511]
[1754002306124,41.08,173.17,173.14,6.65516511]
[1754002306318,41.08,173.17,173.16,5.97516511]
[1754002306536,3.49520237,173.18,173.16,5.97516511]
[1754002306832,3.49520237,173.18,173.17,5.97516511]
[1754002308028,0.64723741,173.18,173.17,5.97516511]
[1754002308326,41.08,173.19,173.17,5.97516511]
[1754002308534,41.08,173.19,173.18,5.97516511]
[1754002308914,41.74,173.19,173.17,5.97516511]
[1754002309235,41.74,173.19,173.15,5.97516511]
[1754002309236,1.30723741,173.18,173.15,5.97516511]
[1754002309438,0.66,173.17,173.15,5.97516511]
[1754002309612,0.66,173.16,173.15,5.97516511]
[1754002310036,0.64723741,173.17,173.15,5.97516511]
[1754002310244,0.64723741,173.16,173.14,5.97516511]
[1754002310419,1.30723741,173.16,173.14,5.97516511]
[1754002311135,0.64723741,173.16,173.15,5.97516511]
[1754002311444,1.30723741,173.18,173.15,5.97516511]
[1754002311741,1.30723741,173.18,173.16,5.97516511]
[1754002312036,0.66,173.17,173.16,5.97516511]
[1754002313035,41.72,173.17,173.15,5.97516511]
[1754002313335,1.30723741,173.16,173.15,5.97516511]
[1754002313540,7.28240252,173.16,173.11,5.97516511]
[1754002313737,0.66,173.15,173.12,5.97516511]
[1754002313939,1.30723741,173.14,173.11,5.97516511]
[1754002314121,0.66,173.13,173.11,5.97516511]
[1754002314320,0.64723741,173.12,173.1,5.97516511]
[1754002314521,0.66,173.11,173.09,5.97516511]
[1754002315220,0.64723741,173.1,173.09,5.97516511]
[1754002315417,0.64723741,173.1,173.08,5.97516511]
[1754002316031,0.66,173.11,173.09,5.97516511]
[1754002316239,0.64723741,173.12,173.09,5.97516511]
[1754002316543,1.30723741,173.12,173.08,5.97516511]
[1754002316840,0.66,173.11,173.08,8.82523061]
[1754002317040,0.64723741,173.1,173.08,8.82523061]
[1754002318915,0.66,173.11,173.08,8.82523061]
[1754002319535,0.64723741,173.1,173.08,8.82523061]
[1754002319862,0.64723741,173.1,173.07,8.82523061]
[1754002320031,1.30723741,173.1,173.07,8.82523061]
[1754002320232,1.30723741,173.1,172.97,98.0]
[1754002320233,8.82523061,173.08,173.03,0.68]
[1754002320434,10.13246802,173.07,173.02,8.82523061]
[1754002320736,42.36723741,173.07,173.03,9.50523061]
[1754002321650,9.48523061,173.06,172.96,41.06]
[1754002321850,9.47246802,173.05,173.0,8.82523061]
[1754002322054,0.66,173.04,173.0,8.82523061]
[1754002322349,1.30723741,173.03,173.0,8.82523061]
[1754002323256,0.64723741,173.04,173.02,8.82523061]
[1754002323442,0.64723741,173.05,173.03,9.50523061]
[1754002324532,0.64723741,173.05,173.04,8.82523061]
[1754002324755,41.06,173.07,173.04,9.52523061]
[1754002324930,41.70723741,173.07,173.06,8.82523061]
[1754002325134,0.64723741,173.08,173.06,8.82523061]
[1754002326044,0.64723741,173.08,173.07,8.82523061]
[1754002326651,0.64723741,173.08,173.06,8.82523061]
[1754002326965,1.36723741,173.08,173.06,8.82523061]
[1754002328046,0.72,173.07,173.05,8.82523061]
[1754002328249,0.64723741,173.07,173.05,8.82523061]
[1754002328439,0.64723741,173.07,173.05,9.52523061]
[1754002329138,0.64723741,173.08,173.05,9.52523061]
[1754002329557,0.64723741,173.08,173.05,8.82523061]
[1754002329558,1.36723741,173.08,173.05,8.82523061]
[1754002330669,0.72,173.07,173.03,0.7]
[1754002330875,0.64723741,173.07,173.03,0.7]
[1754002331344,0.64723741,173.07,173.0,31.96824685]
[1754002331546,0.64723741,173.07,173.04,0.7]
[1754002331753,0.64723741,173.07,173.05,0.7]
[1754002332075,189.38,173.09,173.06,9.52523061]
[1754002332076,0.64723741,173.08,173.06,9.52523061]
[1754002332243,0.64723741,173.08,173.07,8.82523061]
[1754002332444,41.06,173.09,173.07,9.52523061]
[1754002332747,41.06,173.11,173.08,8.82523061]
[1754002332946,0.64723741,173.1,173.09,8.82523061]
[1754002333647,147.6,173.13,173.09,9.52523061]
[1754002333849,147.6,173.13,173.07,5.77792482]
[1754002333850,147.6,173.13,173.12,8.82523061]
[1754002335197,148.32,173.13,173.12,8.82523061]
[1754002336072,148.32,173.13,173.05,0.7]
[1754002336299,42.42723741,173.12,173.08,8.82523061]
[1754002336504,0.72,173.11,173.09,8.82523061]
[1754002336672,0.64723741,173.1,173.09,8.82523061]
[1754002337072,1.36723741,173.1,173.09,8.82523061]
[1754002337272,1.36723741,173.1,173.08,8.82523061]
[1754002338881,42.42723741,173.1,173.08,8.82523061]
[1754002339091,0.72,173.09,173.06,8.82523061]
[1754002339292,0.64723741,173.08,173.05,8.82523061]
[1754002339477,0.72,173.07,173.04,8.82523061]
[1754002339803,1.36723741,173.06,173.03,8.82523061]
[1754002340492,0.72,173.05,173.02,8.82523061]
[1754002340877,41.68723741,173.06,173.03,8.82523061]
[1754002341099,42.40723741,173.06,173.03,8.82523061]
[1754002343077,42.40723741,173.06,173.02,8.82523061]
[1754002343377,0.72,173.05,173.02,8.82523061]
[1754002343578,0.72,173.04,173.0,0.7]
[1754002343790,41.78,173.04,173.02,8.82523061]
[1754002344095,0.72,173.03,172.98,0.7]
[1754002344295,0.64723741,173.02,172.99,8.82523061]
[1754002344795,0.64723741,173.03,173.01,8.82523061]